Cogmind - Beta 13 @@@ ROGUE MODE // 2024.03.08 @ 17:09:51 Player: Baxter Result: Destroyed by Alpha 7 with Enhanced Gamma Rifle Performance ------------- Evolutions (8) 4000 Regions Visited (14) 2800 Robots Destroyed (135) 675 Value Destroyed (3371) 3371 Prototype IDs (39) 780 Alien Tech Used (0) 0 Bonus (1249) 1249 TOTAL SCORE: 12875 Bonus ------- Triggered Max Security 1000 Aligned with FarCom 300 Friendly Fire -51 Cogmind --------- Core Integrity 0/1450 Matter 133/300 Energy 189/500 System Corruption 14% Temperature Cool (4) Movement Flying (45) Location -2/Testing Parts ------- > --- POWER (2) -------- (None) > --- PROPULSION (8) --- Impulse Thruster Array > --- UTILITY (11) ----- Improved Energy Well > --- WEAPON (2) ------- Quantum Rifle > --- INVENTORY (5) ---- Myomer Leg High-density Centrium Leg Xenon Bombardment Thruster Advanced Field Recycling Unit (0) Peak State ------------ > --- POWER ------------ Angular Momentum Engine Micro Fission Core > --- PROPULSION ------- Cooled VTOL Module Field Propulsion Drive Nuclear Pulse Array Field Propulsion Array Electron Diverter > --- UTILITY ---------- Medium Storage Unit Advanced Trap Scanner Enhanced Optical Array Advanced Terrain Scanner Advanced Terrain Scan Processor Advanced Transmission Jammer Hacking Suite Improved Hacking Suite Improved Hacking Suite Improved System Guard > --- WEAPON ----------- Powered Hammer Dual-blade Saw > --- INVENTORY -------- Micro Fission Core Micro Fission Core Cooled Cesium-ion Thruster Impulse Thruster Q-thruster Matter Compressor Advanced System Restoration Module Railgun Enhanced Gauss Cannon Micro-nuke Launcher [Rating: 123] Favorites ----------- Power Light Ion Engine Engine Light Ion Engine Power Core Nuclear Core Reactor Quantum Reactor Propulsion Wheel Treads Improved Treads Leg Flexi-carbon Leg Wheel Wheel Hover Unit Gravmag System Flight Unit Xenon Bombardment Thruster Utility Hacking Suite Device Improved Terrain Scanner Storage High-capacity Storage Unit Processor Advanced Visual Processing Unit Hackware Hacking Suite Protection Improved Light Armor Plating Weapon Autogun Energy Gun Small Laser Energy Cannon Advanced Beam Cannon Ballistic Gun Autogun Ballistic Cannon Enhanced Gauss Cannon Launcher Micro-nuke Launcher Impact Weapon Powered Hammer Slashing Weapon Katana Build | -11 -10 -10 -9 -9 -9 -8 -8 -7 -6 -5 -4 -3 -2 -2 ------- Run | Yrd Mat Min Mat Min Exi Min Mat Fac Fac Fac Fac Res Res Tes Slots Evolved 16 | . . . 2 . . . 2 2 2 2 2 2 2 . Power 1 | . . . . . . . . . . . 1 . . . Propulsion 6 | . . . 1 . . . . 1 1 . 1 1 1 . Utility 9 | . . . 1 . . . 2 1 1 2 . 1 1 . Weapon . | . . . . . . . . . . . . . . . Parts Attached 213 | 6 9 7 17 7 . 10 8 44 42 8 18 15 14 8 Power 29 | 1 . 2 3 . . 1 . 5 4 2 3 4 2 2 Engine 17 | 1 . 2 3 . . 1 . 2 3 2 2 1 . . Core 8 | . . . . . . . . 3 1 . 1 3 . . Reactor 4 | . . . . . . . . . . . . . 2 2 Propulsion 60 | 2 3 1 3 2 . 3 . 9 12 1 7 8 7 2 Treads 4 | 1 1 . 2 . . . . . . . . . . . Leg 3 | . . . . . . . . . 1 . . . 2 . Wheel 13 | 1 2 1 1 2 . 3 . 3 . . . . . . Hover 2 | . . . . . . . . 2 . . . . . . Flight 38 | . . . . . . . . 4 11 1 7 8 5 2 Utility 57 | 1 2 2 5 1 . 2 5 11 11 5 6 3 . 3 Device 21 | . . . 2 1 . 1 2 3 3 2 5 1 . 1 Storage 7 | 1 1 1 2 . . . . 1 . . . . . 1 Processor 10 | . . 1 1 . . 1 2 1 1 2 . 1 . . Hackware 9 | . . . . . . . 1 2 2 1 1 1 . 1 Protection 10 | . 1 . . . . . . 4 5 . . . . . Artifact . | . . . . . . . . . . . . . . . Weapon 67 | 2 4 2 6 4 . 4 3 19 15 . 2 . 5 1 Energy Gun 3 | . . 1 1 . . . . . . . . . . 1 Energy Cannon 1 | . . . 1 . . . . . . . . . . . Ballistic Gun 37 | 2 3 . 4 3 . 2 2 11 8 . 1 . 1 . Ballistic Cannon 1 | . . . . . . . . . . . . . 1 . Launcher 5 | . . . . . . 2 . 1 . . . . 2 . Special Weapon . | . . . . . . . . . . . . . . . Impact Weapon 15 | . 1 1 . 1 . . . 4 7 . . . 1 . Slashing Weapon 5 | . . . . . . . 1 3 . . 1 . . . Piercing Weapon . | . . . . . . . . . . . . . . . Special Melee Weapon . | . . . . . . . . . . . . . . . Unidentified Prototypes 14 | . . . 2 . . . 1 2 4 1 . 1 . 3 Parts Lost 63 | . 3 4 3 . . 3 3 8 5 . 2 10 13 9 Power 17 | . 1 1 2 . . 1 1 1 2 . 1 2 3 2 Propulsion 23 | . 1 1 . . . 2 2 5 1 . . 2 5 4 Utility 15 | . 1 . . . . . . 2 1 . 1 5 3 2 Weapon 8 | . . 2 1 . . . . . 1 . . 1 2 1 Highest Loss Streak 7 | . 2 3 1 . . 2 2 3 1 . 1 6 7 7 To Critical Strikes . | . . . . . . . . . . . . . . . Average Slot Usage (%) 88 | . 85 90 95 100 100 97 92 86 88 91 83 86 56 26 Engine 6 | . 12 10 9 11 11 9 9 2 4 5 8 3 . . Core 1 | . . . . . . . . 4 1 . 1 4 6 . Treads 3 | . 10 . 11 11 11 11 2 . . . . . . . Wheel 11 | . 16 26 22 22 22 21 18 11 1 . . . . . Flight 9 | . . . . . . . . 5 22 27 20 21 18 12 Device 6 | . . . 3 11 11 11 12 7 2 10 11 14 5 1 Storage 8 | . 14 19 18 11 11 11 9 7 6 5 5 4 3 2 Processor 8 | . . 7 11 11 11 11 14 8 6 11 10 11 6 . Hackware 10 | . . . . . . . 8 16 20 23 18 13 6 1 Protection 2 | . 3 . . . . . . 3 7 . . . . . Ballistic Gun 9 | . 27 2 13 17 22 21 16 8 4 . . . . . Impact Weapon 3 | . . 10 3 4 . . . 1 6 5 5 4 3 2 Naked Turns 25 | . . . . . . . . . . . . . 25 . Heaviest Build 63 | 13 51 58 63 54 54 54 51 63 35 28 40 43 43 42 Greatest Support 77 | 20 40 32 32 20 20 20 20 30 30 31 43 50 60 77 Greatest Overweight (x) 20 | 3 4 3 2 2 2 5 4 20 2 1 2 1 1 . Average Overweight (x) . | . . 1 1 2 2 2 2 1 . . . . . . Largest Inventory Capacity 20 | 8 20 20 20 20 20 20 20 20 10 10 10 10 10 5 Average Capacity 14 | 7 14 20 20 20 20 20 20 16 10 10 10 10 8 5 Most Carried 20 | 6 14 14 20 20 20 20 20 20 10 10 10 10 7 5 Average Carried 12 | 3 8 10 14 19 20 19 17 15 9 8 9 9 5 3 Final Capacity 20 | 8 20 20 20 20 20 20 20 10 10 10 10 10 5 5 Final Carried 20 | 6 14 9 20 20 20 19 20 10 10 10 10 4 4 4 Class Distribution -------------------- 21% | Mutant 14% | Hacker-Sprinter 14% | Hacker-Mutant 13% | Scavenger-Skirmisher 10% | Scavenger-Assassin 8% | Hacker-Ninja 7% | Scavenger-Mutant 7% | Hacker-Scout Dominant Class ---------------- Mutant | -10/Materials Mutant | -10/Mines Mutant | -9/Materials Scavenger-Mutant | -9/Mines Scavenger-Mutant | -9/Exiles Scavenger-Skirmisher | -8/Mines Scavenger-Skirmisher | -8/Materials Scavenger-Assassin | -7/Factory Hacker-Sprinter | -6/Factory Hacker-Ninja | -5/Factory Hacker-Scout | -4/Factory Hacker-Ninja | -3/Research Hacker-Scout | -2/Research Sprinter | -2/Testing Resources | -11 -10 -10 -9 -9 -9 -8 -8 -7 -6 -5 -4 -3 -2 -2 ----------- Run | Yrd Mat Min Mat Min Exi Min Mat Fac Fac Fac Fac Res Res Tes Matter Collected 4114 | 198 366 97 328 402 . 313 395 651 745 26 143 215 209 26 Remotely 281 | . . . 61 220 . . . . . . . . . . Salvage Created 4499 | . 511 119 497 244 . 352 525 650 918 26 177 68 386 26 Parts 257 | . 40 5 30 10 . 23 34 47 37 . 7 4 16 4 Haulers Intercepted 8 | . . . . . . . 4 3 1 . . . . . Recyclers Shooed 4 | . 2 . . 1 . . 1 . . . . . . . Parts Field Recycled . | . . . . . . . . . . . . . . . Retrieved Matter . | . . . . . . . . . . . . . . . Parts Self-Destructed . | . . . . . . . . . . . . . . . Prevented . | . . . . . . . . . . . . . . . Kills | -11 -10 -10 -9 -9 -9 -8 -8 -7 -6 -5 -4 -3 -2 -2 ------- Run | Yrd Mat Min Mat Min Exi Min Mat Fac Fac Fac Fac Res Res Tes Combat Hostiles Destroyed 81 | . 15 5 12 4 . 10 5 7 13 . 2 1 7 . Melee 9 | . . 1 2 . . . . . 3 . 2 1 . . Guns 56 | . 15 4 8 4 . 3 5 6 9 . . . 2 . Cannons 1 | . . . 1 . . . . . . . . . . . AOE 12 | . . . . . . 7 . . . . . . 5 . Classes Destroyed 14 | . 5 . 2 1 . 2 1 2 1 . . . . . Worker 18 | . 1 . 1 . . 2 2 4 5 . 2 . 1 . Builder 4 | . . . . . . 1 1 1 1 . . . . . Tunneler 6 | . . . . . . 2 . 1 1 . 1 . 1 . Hauler 8 | . . . . . . . 4 3 1 . . . . . Recycler 5 | . . . . 1 . . 1 1 1 . . . 1 . Operator 5 | . 2 . . . . . 2 . . . . . . 1 Watcher 8 | . 2 . . . . . 1 . 2 1 1 . 1 . Swarmer 31 | . 5 3 3 . . 7 4 . 4 . . . 5 . Cutter 2 | . . . . . . . . . 2 . . . . . Grunt 26 | . 10 2 5 4 . 3 1 . 1 . . . . . Duelist 1 | . . . 1 . . . . . . . . . . . Sentry 5 | . . . 3 . . . . 1 1 . . . . . Hunter 1 | . . . . . . . . 1 . . . . . . Programmer 15 | . . . . . . . . 5 5 . 2 1 2 . Best Kill Streak 5 | . 5 3 4 2 . 4 4 3 4 1 2 1 5 1 Combat Bots Only 5 | . 5 3 4 2 . 4 3 1 4 . 2 1 5 . Max Kills in Single Turn 4 | . 1 1 2 1 . 4 2 1 1 1 1 1 4 1 Gunslinging . | . . . . . . . . . . . . . . . Exploded 4 | . . . . . . 4 . . . . . . 4 . Melee 1 | . . 1 1 . . . . . 1 . 1 1 . . Uniques/NPCs Destroyed . | . . . . . . . . . . . . . . . Combat | -11 -10 -10 -9 -9 -9 -8 -8 -7 -6 -5 -4 -3 -2 -2 -------- Run | Yrd Mat Min Mat Min Exi Min Mat Fac Fac Fac Fac Res Res Tes Hostile Shots Fired 828 | . 74 51 64 11 . 31 31 121 112 . 20 44 201 68 Missed 286 | . 17 13 14 3 . 8 9 43 42 . 9 22 78 28 Damage Taken 9938 | . 756 421 641 121 . 322 221 741 1194 . 591 737 2931 1262 Core 2550 | . 112 136 96 . . 21 8 136 239 . 236 94 979 493 Absorbed by Shields . | . . . . . . . . . . . . . . . Core Remaining (%) 76 | 100 . . . . . 70 98 80 71 100 79 92 . . Volleys Fired 295 | . 75 24 40 11 . 30 32 27 38 . . . 16 2 Largest 2 | . 2 2 2 2 . 2 2 2 2 . . . 2 1 Hottest 106 | . 40 60 46 46 . 46 50 50 60 . . . 106 94 Shots Fired 529 | . 150 41 50 22 . 56 64 46 73 . . . 25 2 Gun 508 | . 150 41 50 22 . 52 64 46 73 . . . 8 2 Cannon 9 | . . . . . . . . . . . . . 9 . Launcher 12 | . . . . . . 4 . . . . . . 8 . Special . | . . . . . . . . . . . . . . . Kinetic 499 | . 150 25 50 22 . 52 64 46 73 . . . 17 . Thermal 18 | . . 16 . . . . . . . . . . . 2 Explosive 12 | . . . . . . 4 . . . . . . 8 . Electromagnetic . | . . . . . . . . . . . . . . . Robot Hit Streak 18 | . 10 3 18 18 . 12 8 8 8 . . . 4 . Robot Miss Streak 6 | . 5 6 2 2 . 4 2 3 3 . . . 3 1 Penetration Max . | . . . . . . . . . . . . . . . Secondary Targets 3 | . 2 . . . . . 1 . . . . . . . Max Gunslinging Chain 1 | . 1 . . . . . 1 . . . . . . . Shots Hit Robots 405 | . 82 30 54 14 . 32 45 46 64 1 15 7 13 2 Core Hits 182 | . 44 8 18 7 . 18 19 21 20 . 3 1 21 2 Critical Kills 3 | . . . 1 . . . . . 1 . . 1 . . Critical Parts Destroyed 13 | . 1 1 1 . . . . . 6 1 3 . . . Critical Strikes 23 | . 1 1 3 . . . 2 . 7 1 3 3 2 . Destroy 3 | . 1 . 2 . . . . . . . . . . . Blast 2 | . . . . . . . . . . . . . 2 . Smash 14 | . . 1 1 . . . . . 7 1 3 1 . . Sever 4 | . . . . . . . 2 . . . . 2 . . Melee Attacks 313 | . 1 17 11 2 . . 9 34 127 19 33 38 12 10 Impact 270 | . 1 17 11 2 . . . 17 127 19 33 21 12 10 Slashing 43 | . . . . . . . 9 17 . . . 17 . . Piercing . | . . . . . . . . . . . . . . . Sneak Attacks 30 | . . . . 1 . . 4 9 11 . 3 . 1 1 Combat Hostiles 1 | . . . . . . . . . 1 . . . . . Follow-up Attacks 4 | . . . . . . . . . 3 . . 1 . . Damage Inflicted 10983 | . 769 436 985 264 . 826 991 1406 2632 75 798 216 1460 125 Guns 4564 | . 769 173 704 210 . 472 638 560 901 . . . 137 . Cannons 164 | . . . . . . . . . . . . . 164 . Explosions 1375 | . . . . . . 354 . . . . . . 1021 . Melee 4878 | . . 263 279 54 . . 353 846 1731 75 798 216 138 125 Ramming 2 | . . . 2 . . . . . . . . . . . Kinetic 4609 | . 769 54 704 210 . 472 638 560 901 . . . 301 . Thermal 119 | . . 119 . . . . . . . . . . . . Explosive 1375 | . . . . . . 354 . . . . . . 1021 . Electromagnetic . | . . . . . . . . . . . . . . . Impact 3891 | . . 263 279 54 . . . 335 1731 75 798 93 138 125 Slashing 987 | . . . . . . . 353 511 . . . 123 . . Piercing . | . . . . . . . . . . . . . . . Highest Corruption 14 | . 2 2 . . . . . 1 5 4 2 . 3 14 Average Corruption 3 | . 2 2 . . . . . 1 3 3 1 . 2 5 Corruption Purged 4 | . . . . . . . . . . . 3 . 1 . Corruption Blocked 3 | . . . . . . . . . 3 . . . . . Effects 54 | . . 11 . . . . . . 20 14 3 . 1 5 Message Errors 13 | . . 2 . . . . . . 5 3 1 . 1 1 Matter Fused 12 | . . 3 . . . . . . 4 5 . . . . Heat Flow Errors 9 | . . 1 . . . . . . 5 1 1 . . 1 Energy Discharges 5 | . . 3 . . . . . . 1 1 . . . . Data Loss (minor) 8 | . . 1 . . . . . . 4 3 . . . . Data Loss (major) 4 | . . . . . . . . . 1 1 1 . . 1 Misfires 1 | . . 1 . . . . . . . . . . . . Misdirections 2 | . . . . . . . . . . . . . . 2 Overload Shots . | . . . . . . . . . . . . . . . Overflow Damage 1682 | . . 16 30 14 . 27 95 106 839 75 352 . 128 . Projectiles . | . . . . . . . . . . . . . . . Explosions 87 | . . . . . . 27 . . . . . . 60 . Melee 1595 | . . 16 30 14 . . 95 106 839 75 352 . 68 . Knockbacks 14 | . . . 5 1 . . . . 1 1 3 . 2 1 Impact 11 | . . . 3 1 . . . . 1 1 3 . 1 1 Kinetic 1 | . . . . . . . . . . . . . 1 . Secondary 2 | . . . 2 . . . . . . . . . . . Self-Inflicted Damage 71 | . . . 1 . . . . . . . . . 70 . Shots 1 | . . . . . . . . . . . . . 1 . Rammed 1 | . . . 1 . . . . . . . . . . . Targets Rammed 1 | . . . 1 . . . . . . . . . . . Kicked . | . . . . . . . . . . . . . . . Crushed . | . . . . . . . . . . . . . . . Highest Temperature 275 | . 28 113 13 22 . 11 6 24 275 151 211 . 110 136 Average Temperature 51 | . 9 35 6 8 . 5 2 10 90 94 100 . 53 41 Received Heat Transfer 1089 | . 240 132 198 66 . 108 99 78 42 . . 18 81 27 Siege Activations . | . . . . . . . . . . . . . . . Robots Corrupted . | . . . . . . . . . . . . . . . Combat Hostiles . | . . . . . . . . . . . . . . . Parts Fried 35 | . . 1 1 . . . . 1 24 2 6 . . . Impact Corruptions 39 | . . 1 1 1 . . . 2 18 3 10 . 3 . Robots Melted . | . . . . . . . . . . . . . . . Combat Hostiles . | . . . . . . . . . . . . . . . Parts Melted 1 | . . 1 . . . . . . . . . . . . Heat Transferred 250 | . . 250 . . . . . . . . . . . . Parts Sabotaged . | . . . . . . . . . . . . . . . Parts Stolen . | . . . . . . . . . . . . . . . Parts Stripped . | . . . . . . . . . . . . . . . Power Chain Reactions . | . . . . . . . . . . . . . . . Alert | -11 -10 -10 -9 -9 -9 -8 -8 -7 -6 -5 -4 -3 -2 -2 ------- Run | Yrd Mat Min Mat Min Exi Min Mat Fac Fac Fac Fac Res Res Tes Peak Influence 1758 | . 292 185 292 100 . 243 89 83 396 344 104 106 488 1758 Initial 204 | . . 90 . 51 . . 11 14 22 189 76 42 54 204 Average 101 | . 146 67 128 26 . 69 49 32 111 245 55 62 202 1611 Maximum Alert Level 5 | . 1 . 1 . . 1 . . 1 1 . . 2 5 Low Security (%) 88 | 100 71 100 81 100 . 99 100 100 84 26 100 100 59 . Level 1 9 | . 28 . 18 . . . . . 15 73 . . 29 . Level 2 . | . . . . . . . . . . . . . 11 . Level 3 . | . . . . . . . . . . . . . . . Level 4 . | . . . . . . . . . . . . . . . Level 5 . | . . . . . . . . . . . . . . . High Security . | . . . . . . . . . . . . . . . Max Security 1 | . . . . . . . . . . . . . . 99 Squads Dispatched 51 | . 5 . . . . . 1 6 19 2 2 6 4 6 Investigation 10 | . 2 . . . . . . 2 2 2 . 2 . . Extermination 13 | . . . . . . . . 4 6 . 1 1 1 . Reinforcement 22 | . 3 . . . . . 1 . 11 . 1 3 3 . Assault 6 | . . . . . . . . . . . . . . 6 Garrison . | . . . . . . . . . . . . . . . Intercept . | . . . . . . . . . . . . . . . Searches Triggered . | . . . . . . . . . . . . . . . Construction Impeded 1 | . . . . . . . . . . . . . 1 . Haulers Reinforced . | . . . . . . . . . . . . . . . Active Scanning Responses . | . . . . . . . . . . . . . . . Cargo Convoy Interrupts 1 | . . . . . . . . . 1 . . . . . Stealth | -11 -10 -10 -9 -9 -9 -8 -8 -7 -6 -5 -4 -3 -2 -2 --------- Run | Yrd Mat Min Mat Min Exi Min Mat Fac Fac Fac Fac Res Res Tes Distress Signals 14 | . 1 . . 3 . . 2 . 2 2 . . 3 1 Communications Jammed 24 | . . . . . . . . . 3 . . 21 . . Distress Signals 23 | . . . . . . . . . 3 . . 20 . . Times Spotted 230 | . 26 7 14 5 . 13 17 13 31 3 10 18 37 36 Peak Tracking Total 24 | . 4 3 6 2 . 4 8 2 5 4 5 8 21 24 Tactical Retreats 32 | . 2 1 1 1 . 2 . 3 10 2 . 5 2 3 Traps | -11 -10 -10 -9 -9 -9 -8 -8 -7 -6 -5 -4 -3 -2 -2 ------- Run | Yrd Mat Min Mat Min Exi Min Mat Fac Fac Fac Fac Res Res Tes Traps Triggered 8 | . 3 . . . . . . . 2 . 2 1 . . Indirectly . | . . . . . . . . . . . . . . . Trap Hack Attempts . | . . . . . . . . . . . . . . . Triggered . | . . . . . . . . . . . . . . . Disarmed . | . . . . . . . . . . . . . . . Reprogrammed . | . . . . . . . . . . . . . . . Reused . | . . . . . . . . . . . . . . . Traps Extracted . | . . . . . . . . . . . . . . . Installed . | . . . . . . . . . . . . . . . Triggered 2 | . . . . . . . . . 2 . . . . . Machines | -11 -10 -10 -9 -9 -9 -8 -8 -7 -6 -5 -4 -3 -2 -2 ---------- Run | Yrd Mat Min Mat Min Exi Min Mat Fac Fac Fac Fac Res Res Tes Machines Disabled 1 | . . . . . . . 1 . . . . . . . Max in Single Turn 1 | . . . . . . . 1 . . . . . . . Machines Repaired . | . . . . . . . . . . . . . . . Machines Dismantled . | . . . . . . . . . . . . . . . Machines Sabotaged . | . . . . . . . . . . . . . . . Overloaded Fab Kills . | . . . . . . . . . . . . . . . Hacking | -11 -10 -10 -9 -9 -9 -8 -8 -7 -6 -5 -4 -3 -2 -2 --------- Run | Yrd Mat Min Mat Min Exi Min Mat Fac Fac Fac Fac Res Res Tes Machines Accessed 37 | . 4 1 5 . 1 . 4 5 7 2 4 3 1 . Terminals 27 | . 4 . 4 . . . 4 4 5 1 2 2 1 . Fabricators 3 | . . . . . . . . 1 . 1 1 . . . Repair Stations . | . . . . . . . . . . . . . . . Recycling Units . | . . . . . . . . . . . . . . . Scanalyzers 5 | . . . 1 . . . . . 2 . 1 1 . . Garrison Access . | . . . . . . . . . . . . . . . Total Hacks 85 | . 13 1 12 . 1 . 10 12 13 5 7 10 1 . Successful 62 | . 7 1 9 . 1 . 8 5 11 5 6 8 1 . Failed 23 | . 6 . 3 . . . 2 7 2 . 1 2 . . Catastrophic 2 | . . . . . . . . 1 1 . . . . . Database Lockouts . | . . . . . . . . . . . . . . . Manual 64 | . 12 . 11 . 2 . 10 8 8 3 3 6 1 . Terminals 62 | . 13 . 10 . . . 10 8 8 3 3 6 1 . Fabricators 7 | . . . . . . . . 4 . 2 1 . . . Repair Stations . | . . . . . . . . . . . . . . . Recycling Units . | . . . . . . . . . . . . . . . Scanalyzers 14 | . . . 2 . . . . . 5 . 3 4 . . Garrison Access . | . . . . . . . . . . . . . . . Terminal Hacks 16 | . 3 1 1 . 1 . 2 . 2 1 1 4 . . Record 1 | . 1 . . . . . . . . . . . . . Part Schematic 1 | . . . . . . . . . 1 . . . . . Robot Analysis 2 | . 2 . . . . . . . . . . . . . Open Door 1 | . . 1 . . . . . . . . . . . . Level Access Points 1 | . . . . . . . . . . . . 1 . . Branch Access Points 2 | . . . . . . . . . . 1 . 1 . . Terminal Index 1 | . . . . . . . . . . . . 1 . . Fabricator Index 1 | . . . . . . . . . 1 . . . . . Alert Level 2 | . . . 1 . . . 1 . . . . . . . Recall Investigation 1 | . . . . . . . . . . . . 1 . . Recall Reinforcements 1 | . . . . . . . . . . . 1 . . . Hauler Manifests 1 | . . . . . . . 1 . . . . . . . Derelict Proto ID Bank 1 | . . . . . 1 . . . . . . . . . Fabricator Hacks 5 | . . . . . . . . 2 . 2 1 . . . Network Status 1 | . . . . . . . . 1 . . . . . . Load Schematic 3 | . . . . . . . . 1 . 1 1 . . . Build 1 | . . . . . . . . . . 1 . . . . Repair Station Hacks . | . . . . . . . . . . . . . . . Recycling Unit Hacks . | . . . . . . . . . . . . . . . Scanalyzer 12 | . . . 2 . . . . . 4 . 3 3 . . Insert Component 5 | . . . 1 . . . . . 2 . 1 1 . . Analyze 7 | . . . 1 . . . . . 2 . 2 2 . . Garrison Access Hacks . | . . . . . . . . . . . . . . . Unauthorized Hacks 29 | . 4 . 6 . . . 6 3 5 2 1 1 1 . Terminals 29 | . 4 . 6 . . . 6 3 5 2 1 1 1 . Track 6 | . . . 1 . . . 1 1 2 1 . . . . Assimilate 2 | . . . 1 . . . 1 . . . . . . . Botnet 21 | . 4 . 4 . . . 4 2 3 1 1 1 1 . Fabricators . | . . . . . . . . . . . . . . . Repair Stations . | . . . . . . . . . . . . . . . Recycling Units . | . . . . . . . . . . . . . . . Scanalyzers . | . . . . . . . . . . . . . . . Garrison Access . | . . . . . . . . . . . . . . . Data Cores Recovered . | . . . . . . . . . . . . . . . Used . | . . . . . . . . . . . . . . . Hacking Detections 28 | . 3 . 5 . . . 2 4 6 2 3 3 . . Full Trace Events 8 | . 1 . . . . . . 2 1 2 . 2 . . Feedback Events 2 | . . . . . . . . . 1 1 . . . . Corruption 1 | . . . . . . . . . . 1 . . . . Hackware Fried 1 | . . . . . . . . . 1 . . . . . Feedback Blocked . | . . . . . . . . . . . . . . . Robot Schematics Acquired . | . . . . . . . . . . . . . . . Robots Built . | . . . . . . . . . . . . . . . Authchips . | . . . . . . . . . . . . . . . Time . | . . . . . . . . . . . . . . . Total Robot Build Rating . | . . . . . . . . . . . . . . . Part Schematics Acquired 5 | . . . 1 . . . . . 3 . 1 . . . Parts Built 1 | . . . . . . . . . . 1 . . . . Authchips . | . . . . . . . . . . . . . . . Time 67 | . . . . . . . . . . 67 . . . . Total Part Build Rating 4 | . . . . . . . . . . 4 . . . . Parts Repaired . | . . . . . . . . . . . . . . . Time . | . . . . . . . . . . . . . . . Parts Recycled . | . . . . . . . . . . . . . . . Recycled Matter . | . . . . . . . . . . . . . . . Retrieved Matter . | . . . . . . . . . . . . . . . Retrieved Components . | . . . . . . . . . . . . . . . Parts Scanalyzed 5 | . . . 1 . . . . . 2 . 1 1 . . Part Schematics Acquired 4 | . . . 1 . . . . . 2 . 1 . . . Parts Damaged 2 | . . . . . . . . . . . 1 1 . . Bothacking | -11 -10 -10 -9 -9 -9 -8 -8 -7 -6 -5 -4 -3 -2 -2 ------------ Run | Yrd Mat Min Mat Min Exi Min Mat Fac Fac Fac Fac Res Res Tes Used RIF Installer . | . . . . . . . . . . . . . . . Robots Hacked . | . . . . . . . . . . . . . . . Non-combat . | . . . . . . . . . . . . . . . Combat . | . . . . . . . . . . . . . . . Robot Hacks Applied . | . . . . . . . . . . . . . . . Relay Couplers Released . | . . . . . . . . . . . . . . . Fabnet Peak Effective % . | . . . . . . . . . . . . . . . Robots Rewired . | . . . . . . . . . . . . . . . Allies Hacked . | . . . . . . . . . . . . . . . Hacks Repelled . | . . . . . . . . . . . . . . . Allies | -11 -10 -10 -9 -9 -9 -8 -8 -7 -6 -5 -4 -3 -2 -2 -------- Run | Yrd Mat Min Mat Min Exi Min Mat Fac Fac Fac Fac Res Res Tes Total Allies 1 | . . . . . . . 1 . . . . . . . Largest Group 1 | . . . . . . . 1 . . . . . . . Highest-Rated Group 10 | . . . . . . . 10 . . . . . . . Highest-Rated Ally 10 | . . . . . . . 10 . . . . . . . Total Orders . | . . . . . . . . . . . . . . . Ally Attacks . | . . . . . . . . . . . . . . . Total Damage . | . . . . . . . . . . . . . . . Kills . | . . . . . . . . . . . . . . . Allies Corrupted . | . . . . . . . . . . . . . . . Allies Melted . | . . . . . . . . . . . . . . . Intel | -11 -10 -10 -9 -9 -9 -8 -8 -7 -6 -5 -4 -3 -2 -2 ------- Run | Yrd Mat Min Mat Min Exi Min Mat Fac Fac Fac Fac Res Res Tes Robot Analysis Total 2 | . 2 . . . . . . . . . . . . . Derelict Logs Recovered 2 | . . 1 . 1 . . . . . . . . . . Drone Launches . | . . . . . . . . . . . . . . . Drone Recoveries . | . . . . . . . . . . . . . . . Exploration | -11 -10 -10 -9 -9 -9 -8 -8 -7 -6 -5 -4 -3 -2 -2 ------------- Run | Yrd Mat Min Mat Min Exi Min Mat Fac Fac Fac Fac Res Res Tes Turns Passed 15995 | 68 1148 818 692 1439 291 992 1407 2647 3572 499 1113 665 459 185 Spaces Moved 15985 | 42 693 565 440 908 266 779 727 1854 4965 1135 1404 1244 583 380 Core 116 | 11 50 . . . . . . 6 . . . . 49 . Treads 131 | 7 124 . . . . . . . . . . . . . Legs 24 | . . . . . . . . . . . . . 24 . Wheels 6684 | 24 519 565 440 908 266 779 727 1785 671 . . . . . Hover . | . . . . . . . . . . . . . . . Flight 9030 | . . . . . . . . 63 4294 1135 1404 1244 510 380 Fastest Speed 24 | 50 100 105 105 110 110 110 110 31 25 25 24 28 29 32 Average Speed 66 | 117 125 117 117 110 110 110 110 113 41 25 28 34 37 35 Slowest Speed 1050 | 200 250 145 120 110 110 155 140 1050 130 109 200 109 190 45 Overloaded Moves . | . . . . . . . . . . . . . . . Propulsion Burnouts . | . . . . . . . . . . . . . . . Robots Hopped 6 | . . . . . . . . . 5 . . . . 1 Cave-ins Triggered 1 | . . . . . . . . . . . . . . 1 Exploration Rate (%) 48 | 3 88 81 31 98 61 94 41 37 65 19 33 30 13 30 Regions Visited 14 Branch Regions 5 Pre-discovered Areas 1 | . . 1 . . . . . . . . . . . . Known Exits Taken 7 | . . 1 1 1 1 1 1 . . . . 1 . . Unknown Exits Taken 7 | 1 1 . . . . . . 1 1 1 1 . 1 . Scrap Searched 2 | . . . . 1 . 1 . . . . . . . . Spaces Dug 179 | . 1 . . 1 . . 3 16 94 18 12 19 9 6 Terrain Destroyed 357 | . 1 . . 1 . 30 3 16 94 18 12 19 157 6 Melee 179 | . 1 . . 1 . . 3 16 94 18 12 19 9 6 Projectile 5 | . . . . . . . . . . . . . 5 . AOE 173 | . . . . . . 30 . . . . . . 143 . Terrain Rammed . | . . . . . . . . . . . . . . . Walls Destroyed . | . . . . . . . . . . . . . . . Machines Disabled . | . . . . . . . . . . . . . . . Actions | -11 -10 -10 -9 -9 -9 -8 -8 -7 -6 -5 -4 -3 -2 -2 --------- Run | Yrd Mat Min Mat Min Exi Min Mat Fac Fac Fac Fac Res Res Tes Total 20342 | 57 842 657 557 1333 267 865 1274 2311 6206 1307 2067 1415 775 409 Wait 3282 | 4 50 43 21 382 . 44 481 303 1001 137 563 109 144 . Move 15960 | 41 692 564 439 907 265 778 726 1853 4955 1134 1403 1243 582 378 Hop 5 | . . . . . . . . . 4 . . . . 1 Pick Up 134 | 6 11 1 17 11 1 1 9 27 8 4 15 8 7 8 Fast Attach 49 | 6 1 . 5 . . 1 1 7 15 1 4 1 5 2 Attach 82 | . 2 6 5 1 . 2 3 20 9 5 7 9 6 7 Detach 15 | . . . 1 . . . 1 3 6 2 1 1 . . Swap 84 | . 6 1 8 6 . 7 4 17 18 2 7 5 3 . Drop 102 | . 4 1 9 13 1 2 8 20 17 3 16 7 . 1 Fire 295 | . 75 24 40 11 . 30 32 27 38 . . . 16 2 Melee 297 | . 1 17 11 2 . . 9 34 117 19 33 32 12 10 Ram 1 | . . . 1 . . . . . . . . . . . Kick . | . . . . . . . . . . . . . . . Crush . | . . . . . . . . . . . . . . . Escape Stasis 36 | . . . . . . . . . 18 . 18 . . . Rewire . | . . . . . . . . . . . . . . . Trap . | . . . . . . . . . . . . . . . Miscellaneous . | . . . . . . . . . . . . . . . Route ------- -11/Scrapyard -10/Materials (discovered 4 exits: *Mat x2 / *Min x2) -10/Mines (discovered 2 exits: *Mat x2) -9/Materials -9/Mines (discovered 4 exits: *Mat x2 / *Exi / *Zio) -9/Exiles -8/Mines -8/Materials (discovered 2 exits: *Fac / Sto) -7/Factory -6/Factory (discovered 3 exits: *Fac x2 / [*Low]) -5/Factory (discovered 5 exits: *Fac / Upp x2 / Ext x2) -4/Factory -3/Research (discovered 6 exits: *Res x3 / Arm / *Qua x2) -2/Research -2/Testing History --------- Turn | Location | Event 25 | -11/Scrapyard | Discovered new exit (range 15) 69 | -11/Scrapyard | Entered Materials 241 | -10/Materials | Discovered new exit (range 14) 298 | -10/Materials | Discovered new exit (range 11) 317 | -10/Materials | Build established: Mutant 450 | -10/Materials | Discovered new exit (range 6) 1015 | -10/Materials | Discovered new exit (range 10) 1217 | -10/Materials | Entered Mines 1235 | -10/Mines | Found the Drone Emporium 1242 | -10/Mines | Found Prototype Device 1271 | -10/Mines | Met a Derelict bent on vengeance 1290 | -10/Mines | Core integrity fell below 50% 1346 | -10/Mines | Lost 3 parts (1n2w) 1477 | -10/Mines | Core integrity fell below 20% 1587 | -10/Mines | Discovered new exit (range 3) 1636 | -10/Mines | Identified exit to Materials 1654 | -10/Mines | Learned location of Storage (-8) 1767 | -10/Mines | Discovered exit to Materials (range 13) 2035 | -10/Mines | Entered Materials 2035 | -9/Materials | Evolved 2 slots: Propulsion x1, Utility x1 2664 | -9/Materials | Discovered new exit (range 5) 2725 | -9/Materials | Identified exit to Mines 2727 | -9/Materials | Entered Mines 2812 | -9/Mines | Assembled infested the area 3203 | -9/Mines | Joined a pair of Derelicts in attacking an 0b10 outpost 3347 | -9/Mines | A Derelict revealed a hidden shortcut to a safe place 3357 | -9/Mines | Identified exit to Zion 3555 | -9/Mines | Deemed a non-threat by the Exiles lab entrance 3556 | -9/Mines | Discovered new exit (range 5) 3599 | -9/Mines | Build established: Scavenger-Mutant 3631 | -9/Mines | Discovered new exit (range 16) 3771 | -9/Mines | Discovered new exit (range 5) 3777 | -9/Mines | Received a Rocket Launcher from a helpful Derelict 3786 | -9/Mines | Identified exit to Materials 3897 | -9/Mines | A weapon hastily lodged in a ceiling crevice suddenly fell to the ground 3930 | -9/Mines | Learned 4 Materials zone layouts 4165 | -9/Mines | Identified exit to Exiles 4166 | -9/Mines | Entered Exiles 4194 | -9/Exiles | Met 8R-AWN 4213 | -9/Exiles | Met EX-HEX 4242 | -9/Exiles | Met EX-BIN 4257 | -9/Exiles | Aligned with FarCom system 4258 | -9/Exiles | Given EX-Vault access code 4284 | -9/Exiles | Opened EX-Vault 4309 | -9/Exiles | Warned to stay clear of 0b10 Research branches 4348 | -9/Exiles | Met EX-DEC 4449 | -9/Exiles | Discovered new exit (range 10) 4456 | -9/Exiles | Identified exit to Mines 4457 | -9/Exiles | Entered Mines 5146 | -8/Mines | Build established: Scavenger-Skirmisher 5437 | -8/Mines | Discovered exit to Materials (range 11) 5449 | -8/Mines | Entered Materials 5449 | -8/Materials | Evolved 2 slots: Utility x2 5449 | -8/Materials | Identified Decoy Drone Bay 5450 | -8/Materials | Identified exit to Storage 5451 | -8/Materials | Identified exit to Factory 6855 | -8/Materials | Build established: Scavenger-Assassin 6856 | -8/Materials | Entered Factory 6856 | -7/Factory | Evolved 2 slots: Propulsion x1, Utility x1 7799 | -7/Factory | Lost 3 parts (1p1n1u) 8764 | -7/Factory | Lost 3 parts (2n1u) 9001 | -7/Factory | Build established: Hacker-Mutant 9369 | -7/Factory | Discovered new exit (range 6) 9503 | -7/Factory | Entered another Factory area 9503 | -6/Factory | Evolved 2 slots: Propulsion x1, Utility x1 9807 | -6/Factory | Hacking Suite fried by hacking feedback 10517 | -6/Factory | Cargo convoy interrupted 10536 | -6/Factory | Spotted B-75 Beast 10943 | -6/Factory | Build established: Hacker-Sprinter 11722 | -6/Factory | Discovered new exit (range 19) 12381 | -6/Factory | Found Prototype Processor 12523 | -6/Factory | Discovered new exit (range 18) 12873 | -6/Factory | Discovered new exit (range 16) 13075 | -6/Factory | Entered another Factory area 13075 | -5/Factory | Evolved 2 slots: Utility x2 13078 | -5/Factory | Identified Exp. Targeting Computer 13172 | -5/Factory | Identified exit to Upper Caves 13172 | -5/Factory | Identified exit to Extension 13416 | -5/Factory | Fabricated Cld. VTOL Module (x1) 13443 | -5/Factory | Build established: Hacker-Ninja 13485 | -5/Factory | Spotted B-75 Beast 13564 | -5/Factory | Discovered new exit (range 18) 13574 | -5/Factory | Entered another Factory area 13574 | -4/Factory | Evolved 2 slots: Power x1, Propulsion x1 14073 | -4/Factory | Build established: Hacker-Scout 14673 | -4/Factory | Discovered new exit (range 4) 14687 | -4/Factory | Entered Research 14687 | -3/Research | Evolved 2 slots: Propulsion x1, Utility x1 14714 | -3/Research | Identified exit to Research 14714 | -3/Research | Identified exit to Armory 14714 | -3/Research | Identified exit to Quarantine 14824 | -3/Research | Build established: Hacker-Ninja 15345 | -3/Research | Lost 6 parts (2p1n3u) 15352 | -3/Research | Entered another Research area 15352 | -2/Research | Evolved 2 slots: Propulsion x1, Utility x1 15610 | -2/Research | Build established: Hacker-Scout 15688 | -2/Research | Lost 3 parts (2n1u) 15714 | -2/Research | Released all parts (9) 15744 | -2/Research | Lost 7 parts (1p2n2u2w) 15795 | -2/Research | Core integrity fell below 50% 15808 | -2/Research | Discovered new exit (range 14) 15811 | -2/Research | Entered Testing 15812 | -2/Testing | Maximum security lockdown engaged 15839 | -2/Testing | Lost 3 parts (2p1n) 15942 | -2/Testing | Spotted Executioner 15942 | -2/Testing | Spotted Executioner 15945 | -2/Testing | Crushed by falling debris 15945 | -2/Testing | System corruption reached 10% 15950 | -2/Testing | Core integrity fell below 20% 15978 | -2/Testing | Lost 7 parts (2p3n1u1w) 15983 | -2/Testing | Spotted Striker 15984 | -2/Testing | Spotted Striker 15989 | -2/Testing | Spotted Alpha 7 15996 | -2/Testing | Destroyed by Alpha 7 with Enhanced Gamma Rifle Last Messages --------------- 15948_ S-43 Plague destroyed. 15948_ Potential Refractor disabled. 15949_ Acquired Xenon Bombardment Thruster. 15949_ C-30 ARC bursts open, deploying its payload. 15949_ G-73 Enforcer unfolds itself. 15949_ L-61 Swordsman unfolds itself. 15949_ M-36 Artificer unfolds itself. 15951_ The unstable cave ceiling collapses. 15961_ Slug penetrates Wall. 15964_ System corrupted: Heat flow error (+180). 15989_ System corrupted: Substantial component data lost. 15990_ Adv. Gravity Neutralizer destroyed. 15990_ Critical hit (Blast). 15990_ Knocked back. 15990_ Slug penetrates Machine. 15993_ Penetrated by Slug. 15993_ Slug penetrates Reinforced Barrier. 15996_ Penetrated by Slug. Map ----- +----------------------------------------------------+ | | | | | | | | | | | | | | | ????????????????????????????????????? | | ????????????????????????????????????? | | ????????????????????????????????????? | | ???????????????????????????????????? | | ?????????????????????????????#????"" | | ?????????????????????????????# ""R"" | | ?????????????????????????##### "" "" | | ??????????????????????# # | | ??????????????????????# """" # """ | | ??????########????????# """" # """ | | ??????#""""""#????????# """" # """ | | ??????#""&"""#????????# """" #?? | | ??????#"" ""######???# #?###+## | | ??????#"" ## #"##########+### # | | ??????#"" s / "" # | | ??????#" s s gg l "T + | | ??????#" K7## ################ # | | ??????#""" K ####??????#####???## ## | | ??????##### @#?????????# ??# #? | | ??????????####?????????# # #? | | ????????#??????????????# + #? | | ????????""????? ???????# # #? | | ???????T""????? ??????# ??# #? | | ??????? ???? ??????# ] ????# #? | | ???????"" """" "???????# ??????# #? | | ???????"" """" "???????#????????# #? | | ????????" """" ?????????????????# #? | | ????????" """" ?????????????????# #? | | ????????? """"???????????w??????# #? | | ????????? ??????????????????# #? | | ???#######+#+###########????????# #? | | ???# ## ] #????????# #? | | ???# ##### ## """ #????????# #? | | ???# #???# ## """ #????????# #? | | ???# #???# ## """ #????????+ #? | | ???# #???# ## #????????# ## | | ####+##### ## #????????+ | | # # #####+####????????# | | # # #?# #??????????# ### | | # # #?# #??????????# #?? | | # # ### #??????????# #?? | | # + ###????????# #?? | | # # """#???????# #?? | +----------------------------------------------------+ Best States ------------- Heat Dissipation 49 Energy Generation 45 Energy Capacity 840 Matter Stores 300 Matter Capacity 300 Sight Range 22 Terrain Scan Range 20 Terrain Scan Density 210 Jamming Range 16 Additional Mass Support 16 Corruption Containment 12 Armor Coverage 600 Melee Speed Boost 20 Evasion (%) 65 Recoil Reduction 2 Offensive Hacking 44 Item Schematics ----------------- Hacking Suite | -9/Materials | Scanalyzed Xenon Bombardment Thruster | -6/Factory | Scanalyzed Nuclear Pulse Thruster | -6/Factory | Scanalyzed Cld. VTOL Module | -6/Factory | Hacked Particle Accelerator | -4/Factory | Scanalyzed Robot Schematics ------------------ None Fabricated ------------ Cld. VTOL Module | x1 | -5/Factory Alien Tech Used ----------------- None Achievements -------------- Dangerous Findings No Signal Respectable Loadout Challenges ------------ None Game ------ Seed ThiefPortableTreads Manual? 0 Play Time 03:22:36 Cumulative 28.4 hours Start 2024.03.07 @ 16:06:18 End 2024.03.08 @ 17:09:51 Sessions 4 Manual Loads 0 Difficulty Rogue Special Mode None Game No. 23 Rogue 23 Adventurer 0 Explorer 0 Win Type - Total 0 Types 0/0/0/0/0/0/0/0/0 Lore% 21 Gallery% 24 Achievement% 22 Wizard Run 0 Options --------- Layout 1 ASCII 0 Keyboard 0 Movement Numpad Keybinds 0 Fullscreen 2 Font 24/X11 Map View 50x35 Zoom Use 0% Tactical HUD 1 Map Filters NONE Filters NONE Steam 0 RUN: 5e939227-d568-480a-9dac-9e957960752b